[Event "Late-Titled-Tuesday-Blitz-March-26-2024"]
[Site "Chess.com"]
[Date "2024.03.26"]
[Round "8"]
[White "omeed_87"]
[Black "nindjaxx8"]
[Result "1-0"]
[WhiteElo "2439"]
[BlackElo "2602"]
[TimeControl "180+1"]
[EndTime "15:28:32 PDT"]
[Termination "omeed_87 won by checkmate"]

1. d4 {[%clk 0:03:00.9]} 1... d5 {[%clk 0:02:58.2]} 2. Nf3 {[%clk 0:03:00.1]}
2... Nf6 {[%clk 0:02:57.5]} 3. Bf4 {[%clk 0:03:00.2]} 3... Bf5 {[%clk
0:02:56.8]} 4. e3 {[%clk 0:02:59.5]} 4... e6 {[%clk 0:02:55.2]} 5. c4 {[%clk
0:02:59.3]} 5... Nbd7 {[%clk 0:02:46.3]} 6. Nc3 {[%clk 0:02:58.8]} 6... c6
{[%clk 0:02:44.9]} 7. Qb3 {[%clk 0:02:58.1]} 7... Qc8 {[%clk 0:02:29.4]} 8. h3
{[%clk 0:02:53]} 8... Be7 {[%clk 0:02:28.9]} 9. Be2 {[%clk 0:02:45.1]} 9... O-O
{[%clk 0:02:24.6]} 10. O-O {[%clk 0:02:44.8]} 10... Ne4 {[%clk 0:02:18]} 11.
Nxe4 {[%clk 0:02:38]} 11... Bxe4 {[%clk 0:02:12.9]} 12. Nd2 {[%clk 0:02:38.1]}
12... Bg6 {[%clk 0:02:11.6]} 13. Rac1 {[%clk 0:02:28.6]} 13... Nf6 {[%clk
0:02:10.4]} 14. Bg5 {[%clk 0:02:20.2]} 14... Rd8 {[%clk 0:02:06.5]} 15. Bf3
{[%clk 0:02:15.4]} 15... a5 {[%clk 0:02:02]} 16. Bxf6 {[%clk 0:02:12.4]} 16...
Bxf6 {[%clk 0:01:57.2]} 17. a4 {[%clk 0:02:09.9]} 17... Qd7 {[%clk 0:01:50]} 18.
Qa3 {[%clk 0:02:00.8]} 18... b6 {[%clk 0:01:28.7]} 19. Rfd1 {[%clk 0:01:47.7]}
19... Be7 {[%clk 0:01:21.4]} 20. Qb3 {[%clk 0:01:46.3]} 20... Bb4 {[%clk
0:01:21.3]} 21. Nb1 {[%clk 0:01:40.9]} 21... Rac8 {[%clk 0:01:06.7]} 22. Nc3
{[%clk 0:01:39.8]} 22... h6 {[%clk 0:00:48.2]} 23. Ne2 {[%clk 0:01:28.7]} 23...
Rc7 {[%clk 0:00:41.1]} 24. Nf4 {[%clk 0:01:28.3]} 24... Bf5 {[%clk 0:00:38.8]}
25. Nd3 {[%clk 0:01:26.6]} 25... Bd6 {[%clk 0:00:35.1]} 26. c5 {[%clk
0:01:23.2]} 26... bxc5 {[%clk 0:00:30]} 27. Nxc5 {[%clk 0:01:22.8]} 27... Bxc5
{[%clk 0:00:30.1]} 28. Rxc5 {[%clk 0:01:22.1]} 28... Rb8 {[%clk 0:00:30.4]} 29.
Qc3 {[%clk 0:01:20.9]} 29... Rcb7 {[%clk 0:00:30.5]} 30. Rd2 {[%clk 0:01:14.8]}
30... Rb3 {[%clk 0:00:29.4]} 31. Qc1 {[%clk 0:01:14.7]} 31... R8b6 {[%clk
0:00:27.9]} 32. Bd1 {[%clk 0:01:09.3]} 32... R3b4 {[%clk 0:00:25.8]} 33. Rxa5
{[%clk 0:01:04]} 33... Qe7 {[%clk 0:00:07.2]} 34. Rc5 {[%clk 0:00:50]} 34... Be4
{[%clk 0:00:07.2]} 35. Bc2 {[%clk 0:00:32]} 35... Rxb2 {[%clk 0:00:04.7]} 36.
Bxe4 {[%clk 0:00:32]} 36... Rxd2 {[%clk 0:00:05.6]} 37. Qxd2 {[%clk 0:00:28.6]}
37... dxe4 {[%clk 0:00:06.1]} 38. Qc2 {[%clk 0:00:25.8]} 38... Qb7 {[%clk
0:00:05.1]} 39. Qxe4 {[%clk 0:00:22.7]} 39... Rb1+ {[%clk 0:00:04.8]} 40. Kh2
{[%clk 0:00:22.9]} 40... Qb8+ {[%clk 0:00:04.1]} 41. Qe5 {[%clk 0:00:22.6]}
41... Qb4 {[%clk 0:00:01.9]} 42. Rxc6 {[%clk 0:00:17.5]} 42... Qe1 {[%clk
0:00:02]} 43. Kg3 {[%clk 0:00:15.1]} 43... Rb2 {[%clk 0:00:01.4]} 44. Rc8+
{[%clk 0:00:12.8]} 44... Kh7 {[%clk 0:00:02]} 45. Qf4 {[%clk 0:00:13.1]} 45...
f5 {[%clk 0:00:02.2]} 46. Rc7 {[%clk 0:00:11]} 46... h5 {[%clk 0:00:01.8]} 47.
a5 {[%clk 0:00:09.2]} 47... Qe2 {[%clk 0:00:01.7]} 48. a6 {[%clk 0:00:08.7]}
48... Ra2 {[%clk 0:00:02.1]} 49. a7 {[%clk 0:00:08.4]} 49... Qf1 {[%clk
0:00:02.8]} 50. Kh4 {[%clk 0:00:06.1]} 50... Kg6 {[%clk 0:00:03.1]} 51. Qg5+
{[%clk 0:00:05.9]} 51... Kh7 {[%clk 0:00:03.1]} 52. Qxg7# {[%clk 0:00:06.2]} 1-0

[Event "Late-Titled-Tuesday-Blitz-March-26-2024"]
[Site "Chess.com"]
[Date "2024.03.26"]
[Round "8"]
[White "Zhigalko_Sergei"]
[Black "Meri-Arabidze"]
[Result "1/2-1/2"]
[WhiteElo "2889"]
[BlackElo "2693"]
[TimeControl "180+1"]
[EndTime "15:28:35 PDT"]
[Termination "Game drawn by repetition"]

1. e4 {[%clk 0:03:00.9]} 1... e5 {[%clk 0:03:00.2]} 2. Nf3 {[%clk 0:02:58.8]}
2... Nc6 {[%clk 0:03:00.4]} 3. Bc4 {[%clk 0:02:57.4]} 3... Nf6 {[%clk
0:02:59.7]} 4. d3 {[%clk 0:02:57]} 4... h6 {[%clk 0:02:56.7]} 5. O-O {[%clk
0:02:54.7]} 5... d6 {[%clk 0:02:55.6]} 6. c3 {[%clk 0:02:53.6]} 6... Be7 {[%clk
0:02:56]} 7. Nbd2 {[%clk 0:02:52.6]} 7... O-O {[%clk 0:02:55.7]} 8. Bb3 {[%clk
0:02:53]} 8... Nh7 {[%clk 0:02:55.1]} 9. Re1 {[%clk 0:02:49]} 9... Ng5 {[%clk
0:02:53]} 10. h3 {[%clk 0:02:43.5]} 10... Kh8 {[%clk 0:02:53]} 11. d4 {[%clk
0:02:41.8]} 11... a5 {[%clk 0:02:43.8]} 12. Bd5 {[%clk 0:02:19.5]} 12... Bf6
{[%clk 0:02:41.2]} 13. Nxg5 {[%clk 0:02:05.6]} 13... Bxg5 {[%clk 0:02:40.2]} 14.
Bxc6 {[%clk 0:01:56.3]} 14... bxc6 {[%clk 0:02:41.1]} 15. dxe5 {[%clk
0:01:56.6]} 15... dxe5 {[%clk 0:02:41.5]} 16. Nb3 {[%clk 0:01:37.2]} 16... Bf6
{[%clk 0:02:35.7]} 17. Be3 {[%clk 0:01:32.4]} 17... a4 {[%clk 0:02:25.9]} 18.
Nc5 {[%clk 0:01:28.8]} 18... a3 {[%clk 0:02:26.2]} 19. b4 {[%clk 0:01:26.5]}
19... Be7 {[%clk 0:02:22.8]} 20. Qh5 {[%clk 0:01:22.3]} 20... Qd6 {[%clk
0:02:10.4]} 21. Rad1 {[%clk 0:01:18.1]} 21... Qf6 {[%clk 0:02:10.4]} 22. Rd2
{[%clk 0:00:30.4]} 22... Kg8 {[%clk 0:02:01.3]} 23. Red1 {[%clk 0:00:30.1]}
23... Bxc5 {[%clk 0:01:57.5]} 24. Bxc5 {[%clk 0:00:28.6]} 24... Re8 {[%clk
0:01:58.2]} 25. Qe2 {[%clk 0:00:13.6]} 25... Be6 {[%clk 0:01:58]} 26. c4 {[%clk
0:00:13.6]} 26... Red8 {[%clk 0:01:44.9]} 27. Rc1 {[%clk 0:00:09.9]} 27... Qf4
{[%clk 0:01:22]} 28. Rxd8+ {[%clk 0:00:07.9]} 28... Rxd8 {[%clk 0:01:22.9]} 29.
Qe3 {[%clk 0:00:03]} 29... Rd2 {[%clk 0:01:01]} 30. Qxa3 {[%clk 0:00:03]} 30...
Rxa2 {[%clk 0:01:01]} 31. Qxa2 {[%clk 0:00:02.6]} 31... Qxc1+ {[%clk 0:01:01.1]}
32. Kh2 {[%clk 0:00:03]} 32... Qf4+ {[%clk 0:00:56.8]} 33. Kg1 {[%clk
0:00:02.8]} 33... Qxe4 {[%clk 0:00:57.5]} 34. Qd2 {[%clk 0:00:02.1]} 34... Qxc4
{[%clk 0:00:52.2]} 35. Qd8+ {[%clk 0:00:02]} 35... Kh7 {[%clk 0:00:52.8]} 36.
Qxc7 {[%clk 0:00:02.5]} 36... Qd5 {[%clk 0:00:49.1]} 37. Qe7 {[%clk 0:00:02.2]}
37... Qd1+ {[%clk 0:00:37.1]} 38. Kh2 {[%clk 0:00:02.3]} 38... Qd5 {[%clk
0:00:38]} 39. Qd6 {[%clk 0:00:02.5]} 39... f6 {[%clk 0:00:34.8]} 40. Qe7 {[%clk
0:00:02.2]} 40... Qd7 {[%clk 0:00:32.5]} 41. Qxd7 {[%clk 0:00:02.4]} 41... Bxd7
{[%clk 0:00:33.4]} 42. Kg1 {[%clk 0:00:02.6]} 42... Kg6 {[%clk 0:00:33.8]} 43.
f3 {[%clk 0:00:03.2]} 43... Kf7 {[%clk 0:00:34.1]} 44. Kf2 {[%clk 0:00:03.8]}
44... f5 {[%clk 0:00:34.4]} 45. g4 {[%clk 0:00:03.8]} 45... g6 {[%clk
0:00:33.8]} 46. Kg3 {[%clk 0:00:04.2]} 46... h5 {[%clk 0:00:29.7]} 47. gxh5
{[%clk 0:00:04.5]} 47... gxh5 {[%clk 0:00:30.3]} 48. f4 {[%clk 0:00:05.4]} 48...
e4 {[%clk 0:00:26.5]} 49. h4 {[%clk 0:00:05.9]} 49... Ke6 {[%clk 0:00:26.4]} 50.
Kf2 {[%clk 0:00:06.4]} 50... Kd5 {[%clk 0:00:27.1]} 51. Ke3 {[%clk 0:00:06.9]}
51... Kc4 {[%clk 0:00:27.6]} 52. Be7 {[%clk 0:00:07.4]} 52... Be6 {[%clk
0:00:23]} 53. Bd6 {[%clk 0:00:06.8]} 53... Bd5 {[%clk 0:00:23.3]} 54. Be7 {[%clk
0:00:07.2]} 54... Kc3 {[%clk 0:00:22.6]} 55. Bc5 {[%clk 0:00:07.2]} 55... Kc2
{[%clk 0:00:21.9]} 56. Bd6 {[%clk 0:00:07.4]} 56... Kc3 {[%clk 0:00:17.8]} 57.
Bc5 {[%clk 0:00:07.6]} 57... Kc4 {[%clk 0:00:18.3]} 58. Bd6 {[%clk 0:00:08]}
58... Kc3 {[%clk 0:00:18.8]} 59. Bc5 {[%clk 0:00:08.5]} 1/2-1/2

[Event "Late-Titled-Tuesday-Blitz-March-26-2024"]
[Site "Chess.com"]
[Date "2024.03.26"]
[Round "8"]
[White "zverr1"]
[Black "cristiano78"]
[Result "1-0"]
[WhiteElo "2555"]
[BlackElo "2255"]
[TimeControl "180+1"]
[EndTime "15:28:35 PDT"]
[Termination "zverr1 won by resignation"]

1. e4 {[%clk 0:02:56.3]} 1... c5 {[%clk 0:02:55]} 2. Nf3 {[%clk 0:02:56.3]} 2...
d6 {[%clk 0:02:49.7]} 3. Nc3 {[%clk 0:02:55.8]} 3... e5 {[%clk 0:02:46.2]} 4.
Bc4 {[%clk 0:02:50.2]} 4... Be7 {[%clk 0:02:44.4]} 5. O-O {[%clk 0:02:50]} 5...
Nf6 {[%clk 0:02:39.2]} 6. d3 {[%clk 0:02:47.1]} 6... h6 {[%clk 0:02:38.5]} 7. a4
{[%clk 0:02:45.8]} 7... Nc6 {[%clk 0:02:38.1]} 8. Nd5 {[%clk 0:02:42.2]} 8...
Nxd5 {[%clk 0:02:29.6]} 9. Bxd5 {[%clk 0:02:43.1]} 9... O-O {[%clk 0:02:27.9]}
10. Nd2 {[%clk 0:02:34]} 10... Be6 {[%clk 0:02:26.5]} 11. Bxe6 {[%clk
0:02:14.2]} 11... fxe6 {[%clk 0:02:25.8]} 12. Qg4 {[%clk 0:02:12.6]} 12... Qd7
{[%clk 0:02:19.7]} 13. Nc4 {[%clk 0:02:11.1]} 13... Kh7 {[%clk 0:02:14.9]} 14.
c3 {[%clk 0:02:08.8]} 14... Rad8 {[%clk 0:02:08.8]} 15. f4 {[%clk 0:01:54]}
15... exf4 {[%clk 0:02:07.1]} 16. Bxf4 {[%clk 0:01:54.9]} 16... d5 {[%clk
0:02:07.1]} 17. Ne5 {[%clk 0:01:46.7]} 17... Nxe5 {[%clk 0:02:06.1]} 18. Bxe5
{[%clk 0:01:47.6]} 18... Bf6 {[%clk 0:02:04.3]} 19. Bxf6 {[%clk 0:01:41.4]}
19... Rxf6 {[%clk 0:02:04.1]} 20. Rxf6 {[%clk 0:01:40.7]} 20... gxf6 {[%clk
0:02:04.6]} 21. Rf1 {[%clk 0:01:34.9]} 21... Rg8 {[%clk 0:02:00.9]} 22. Qh4
{[%clk 0:01:12.8]} 22... Qg7 {[%clk 0:01:57.5]} 23. g3 {[%clk 0:01:12.3]} 23...
Qg5 {[%clk 0:01:44.4]} 24. Qxg5 {[%clk 0:01:02.3]} 24... fxg5 {[%clk 0:01:42.3]}
25. exd5 {[%clk 0:01:02.6]} 25... exd5 {[%clk 0:01:41.5]} 26. Rf5 {[%clk
0:01:03.1]} 26... Re8 {[%clk 0:01:25.3]} 27. Rxd5 {[%clk 0:01:01.6]} 27... Re2
{[%clk 0:01:24.6]} 28. Rd7+ {[%clk 0:01:01.6]} 28... Kg6 {[%clk 0:01:23.3]} 29.
Rxb7 {[%clk 0:01:02]} 29... Kf5 {[%clk 0:01:23.1]} 30. h3 {[%clk 0:00:57.1]}
30... Rd2 {[%clk 0:01:21.5]} 31. Rb5 {[%clk 0:00:28.7]} 31... Ke6 {[%clk
0:01:17.7]} 32. Rxc5 {[%clk 0:00:25.7]} 32... Rxb2 {[%clk 0:01:15]} 33. d4
{[%clk 0:00:22.8]} 33... Kf6 {[%clk 0:01:07.9]} 34. a5 {[%clk 0:00:22.9]} 34...
h5 {[%clk 0:01:04.9]} 35. g4 {[%clk 0:00:22.4]} 35... hxg4 {[%clk 0:01:03.8]}
36. hxg4 {[%clk 0:00:23.3]} 36... Ra2 {[%clk 0:01:01.1]} 37. Rc6+ {[%clk
0:00:16.7]} 37... Ke7 {[%clk 0:00:59.9]} 38. Rc7+ {[%clk 0:00:17.1]} 38... Kd6
{[%clk 0:00:59.2]} 39. Rxa7 {[%clk 0:00:18]} 39... Kd5 {[%clk 0:00:59.7]} 40.
Rg7 {[%clk 0:00:16.6]} 40... Ke4 {[%clk 0:00:56.8]} 41. Rxg5 {[%clk 0:00:16.5]}
41... Kf4 {[%clk 0:00:56.1]} 42. Rf5+ {[%clk 0:00:16.7]} 42... Kxg4 {[%clk
0:00:55.8]} 43. Rc5 {[%clk 0:00:16.6]} 43... Kf4 {[%clk 0:00:55]} 44. Kf1 {[%clk
0:00:16.4]} 44... Ke4 {[%clk 0:00:55]} 45. Ke1 {[%clk 0:00:16.4]} 45... Ke3
{[%clk 0:00:54.9]} 46. Kd1 {[%clk 0:00:16.5]} 46... Kd3 {[%clk 0:00:55.1]} 47.
Kc1 {[%clk 0:00:16.5]} 47... Rc2+ {[%clk 0:00:53.4]} 48. Kb1 {[%clk 0:00:16.7]}
48... Rh2 {[%clk 0:00:51.9]} 49. a6 {[%clk 0:00:16.7]} 49... Rh6 {[%clk
0:00:50.7]} 50. Ra5 {[%clk 0:00:14.8]} 50... Kxc3 {[%clk 0:00:48.5]} 51. a7
{[%clk 0:00:13.8]} 51... Kb3 {[%clk 0:00:48.9]} 52. Ra3+ {[%clk 0:00:10.8]}
52... Kxa3 {[%clk 0:00:46.4]} 53. a8=Q+ {[%clk 0:00:10.5]} 53... Kb3 {[%clk
0:00:46.8]} 54. Qb8+ {[%clk 0:00:09.6]} 54... Kc3 {[%clk 0:00:45.5]} 55. Qg3+
{[%clk 0:00:06.2]} 55... Kc4 {[%clk 0:00:40.9]} 56. Kc2 {[%clk 0:00:04.9]} 56...
Rc6 {[%clk 0:00:36.8]} 57. Qd3+ {[%clk 0:00:04.9]} 57... Kd5+ {[%clk 0:00:36.6]}
58. Kd2 {[%clk 0:00:05.8]} 58... Rc4 {[%clk 0:00:36.5]} 59. Ke3 {[%clk
0:00:05.4]} 59... Ra4 {[%clk 0:00:31.9]} 60. Qb5+ {[%clk 0:00:05.2]} 1-0

[Event "Late-Titled-Tuesday-Blitz-March-26-2024"]
[Site "Chess.com"]
[Date "2024.03.26"]
[Round "8"]
[White "Nf3c5"]
[Black "GelmanAlexander"]
[Result "1-0"]
[WhiteElo "2573"]
[BlackElo "2669"]
[TimeControl "180+1"]
[EndTime "15:28:37 PDT"]
[Termination "Nf3c5 won by checkmate"]

1. e4 {[%clk 0:03:00.9]} 1... c5 {[%clk 0:02:59.8]} 2. Nc3 {[%clk 0:02:57.1]}
2... e6 {[%clk 0:02:52.1]} 3. g3 {[%clk 0:02:53.5]} 3... a6 {[%clk 0:02:52.3]}
4. Bg2 {[%clk 0:02:52.7]} 4... d6 {[%clk 0:02:52.6]} 5. Nge2 {[%clk 0:02:42.4]}
5... Nf6 {[%clk 0:02:51.2]} 6. O-O {[%clk 0:02:42.5]} 6... Nc6 {[%clk
0:02:51.3]} 7. d4 {[%clk 0:02:39.9]} 7... cxd4 {[%clk 0:02:51.4]} 8. Nxd4 {[%clk
0:02:40.5]} 8... Bd7 {[%clk 0:02:51.7]} 9. Re1 {[%clk 0:02:40.2]} 9... Be7
{[%clk 0:02:51.6]} 10. a4 {[%clk 0:02:34.8]} 10... O-O {[%clk 0:02:49.4]} 11.
Nxc6 {[%clk 0:02:33.1]} 11... Bxc6 {[%clk 0:02:49.6]} 12. a5 {[%clk 0:02:31.6]}
12... Rc8 {[%clk 0:02:49.3]} 13. Be3 {[%clk 0:02:30.7]} 13... Qc7 {[%clk
0:02:49.5]} 14. Bb6 {[%clk 0:02:14.9]} 14... Qb8 {[%clk 0:02:49.7]} 15. Qd2
{[%clk 0:02:12.2]} 15... Nd7 {[%clk 0:02:48.4]} 16. Bd4 {[%clk 0:02:12.8]} 16...
Rfd8 {[%clk 0:02:45.6]} 17. f4 {[%clk 0:02:08.8]} 17... Bf6 {[%clk 0:02:40.7]}
18. Bf2 {[%clk 0:01:55]} 18... h6 {[%clk 0:02:28.7]} 19. Ra3 {[%clk 0:01:47.2]}
19... b5 {[%clk 0:01:56.2]} 20. axb6 {[%clk 0:01:44.2]} 20... Nxb6 {[%clk
0:01:56.6]} 21. Rb3 {[%clk 0:01:06.9]} 21... Nc4 {[%clk 0:01:46.4]} 22. Qc1
{[%clk 0:01:07.1]} 22... Qa8 {[%clk 0:01:34.8]} 23. Bf1 {[%clk 0:01:05.1]} 23...
d5 {[%clk 0:01:20.5]} 24. e5 {[%clk 0:01:02]} 24... Be7 {[%clk 0:01:20.7]} 25.
Bd4 {[%clk 0:01:00.1]} 25... a5 {[%clk 0:01:15.6]} 26. Ne2 {[%clk 0:00:55.5]}
26... a4 {[%clk 0:01:12.7]} 27. Rf3 {[%clk 0:00:56]} 27... Bb5 {[%clk
0:01:00.3]} 28. h4 {[%clk 0:00:51.2]} 28... Qc6 {[%clk 0:00:48.5]} 29. Bh3
{[%clk 0:00:45.6]} 29... Bc5 {[%clk 0:00:44.7]} 30. f5 {[%clk 0:00:41.7]} 30...
Nxe5 {[%clk 0:00:42.2]} 31. Re3 {[%clk 0:00:26.8]} 31... Bxe2 {[%clk 0:00:42.1]}
32. Bxc5 {[%clk 0:00:22]} 32... Qxc5 {[%clk 0:00:41.2]} 33. Rxe2 {[%clk
0:00:22.3]} 33... exf5 {[%clk 0:00:32.6]} 34. Kg2 {[%clk 0:00:19.3]} 34... Ng4
{[%clk 0:00:32.2]} 35. Bxg4 {[%clk 0:00:19.4]} 35... fxg4 {[%clk 0:00:32.7]} 36.
Re7 {[%clk 0:00:20]} 36... d4 {[%clk 0:00:30.5]} 37. Qf4 {[%clk 0:00:19.9]}
37... Qd5+ {[%clk 0:00:26]} 38. Kh2 {[%clk 0:00:20.4]} 38... Rd6 {[%clk
0:00:17.9]} 39. R7e5 {[%clk 0:00:15.3]} 39... Qc4 {[%clk 0:00:14.6]} 40. Re8+
{[%clk 0:00:12.1]} 40... Rxe8 {[%clk 0:00:14.8]} 41. Rxe8+ {[%clk 0:00:12.8]}
41... Kh7 {[%clk 0:00:15.7]} 42. Qxd6 {[%clk 0:00:08.7]} 42... Qxc2+ {[%clk
0:00:15.6]} 43. Kg1 {[%clk 0:00:09.6]} 43... Qd1+ {[%clk 0:00:14.9]} 44. Kf2
{[%clk 0:00:09.8]} 44... Qd2+ {[%clk 0:00:14.7]} 45. Re2 {[%clk 0:00:09.3]}
45... Qd3 {[%clk 0:00:14.9]} 46. Qe5 {[%clk 0:00:09.2]} 46... f5 {[%clk
0:00:12.5]} 47. Qf4 {[%clk 0:00:06.6]} 47... Kg6 {[%clk 0:00:07.9]} 48. Rd2
{[%clk 0:00:06.8]} 48... Qc4 {[%clk 0:00:06.1]} 49. Qxd4 {[%clk 0:00:06.7]}
49... Qb3 {[%clk 0:00:06.4]} 50. Qd6+ {[%clk 0:00:05]} 50... Kh7 {[%clk
0:00:06.8]} 51. Qd3 {[%clk 0:00:05.9]} 51... Qb6+ {[%clk 0:00:06.3]} 52. Kg2
{[%clk 0:00:06.4]} 52... Qc6+ {[%clk 0:00:06.1]} 53. Kh2 {[%clk 0:00:06.8]}
53... Qc1 {[%clk 0:00:05.6]} 54. Qxf5+ {[%clk 0:00:06.4]} 54... Kh8 {[%clk
0:00:05.8]} 55. Rd8# {[%clk 0:00:05.2]} 1-0

[Event "Late-Titled-Tuesday-Blitz-March-26-2024"]
[Site "Chess.com"]
[Date "2024.03.26"]
[Round "8"]
[White "baki83"]
[Black "Fonsofan"]
[Result "1/2-1/2"]
[WhiteElo "2910"]
[BlackElo "2774"]
[TimeControl "180+1"]
[EndTime "15:28:40 PDT"]
[Termination "Game drawn - insufficient material"]

1. e4 {[%clk 0:03:00.9]} 1... d6 {[%clk 0:02:59.7]} 2. d4 {[%clk 0:03:00.6]}
2... Nf6 {[%clk 0:03:00.3]} 3. Nc3 {[%clk 0:03:00.5]} 3... e5 {[%clk 0:03:00.9]}
4. Nge2 {[%clk 0:03:00]} 4... Be7 {[%clk 0:02:58.3]} 5. h3 {[%clk 0:02:59.8]}
5... c6 {[%clk 0:02:57.8]} 6. a4 {[%clk 0:02:59.4]} 6... exd4 {[%clk 0:02:49]}
7. Nxd4 {[%clk 0:02:59.2]} 7... O-O {[%clk 0:02:48.1]} 8. Bf4 {[%clk 0:02:54.1]}
8... d5 {[%clk 0:02:47.6]} 9. e5 {[%clk 0:02:53.1]} 9... Nfd7 {[%clk 0:02:47.8]}
10. Bd3 {[%clk 0:02:52.5]} 10... Nc5 {[%clk 0:02:47.3]} 11. O-O {[%clk
0:02:51.8]} 11... Nxd3 {[%clk 0:02:43.8]} 12. Qxd3 {[%clk 0:02:49.9]} 12... Na6
{[%clk 0:02:43.4]} 13. Qg3 {[%clk 0:02:36.2]} 13... Bh4 {[%clk 0:02:40.7]} 14.
Qe3 {[%clk 0:02:36.4]} 14... Be7 {[%clk 0:02:38.8]} 15. Rad1 {[%clk 0:02:26.7]}
15... Re8 {[%clk 0:02:37]} 16. Qg3 {[%clk 0:02:26]} 16... Bh4 {[%clk 0:02:35.7]}
17. Qf3 {[%clk 0:02:26]} 17... Nc5 {[%clk 0:02:28.3]} 18. Bh2 {[%clk 0:02:16.8]}
18... Qb6 {[%clk 0:02:26.1]} 19. b3 {[%clk 0:02:11.7]} 19... Bd7 {[%clk
0:02:16.9]} 20. Kh1 {[%clk 0:02:11.6]} 20... Be7 {[%clk 0:01:43]} 21. Qg3 {[%clk
0:01:55.8]} 21... Ne4 {[%clk 0:01:27.1]} 22. Nxe4 {[%clk 0:01:48]} 22... dxe4
{[%clk 0:01:28]} 23. Qf4 {[%clk 0:01:36.3]} 23... c5 {[%clk 0:01:03.1]} 24. Nf5
{[%clk 0:01:31.6]} 24... Bxf5 {[%clk 0:01:02.5]} 25. Qxf5 {[%clk 0:01:32.5]}
25... Qg6 {[%clk 0:01:02.3]} 26. Qxg6 {[%clk 0:01:28.7]} 26... hxg6 {[%clk
0:01:03.2]} 27. Rd7 {[%clk 0:01:28.1]} 27... b6 {[%clk 0:01:03.2]} 28. Re1
{[%clk 0:01:02.5]} 28... Kf8 {[%clk 0:00:42.6]} 29. Rxe4 {[%clk 0:00:46]} 29...
Red8 {[%clk 0:00:41.8]} 30. Rxd8+ {[%clk 0:00:33.4]} 30... Rxd8 {[%clk
0:00:42.7]} 31. Bf4 {[%clk 0:00:32.2]} 31... Rd1+ {[%clk 0:00:35.8]} 32. Kh2
{[%clk 0:00:32.4]} 32... Ke8 {[%clk 0:00:36.5]} 33. e6 {[%clk 0:00:28.8]} 33...
f5 {[%clk 0:00:34.9]} 34. Re2 {[%clk 0:00:27.3]} 34... Bd6 {[%clk 0:00:27.6]}
35. Bxd6 {[%clk 0:00:17.6]} 35... Rxd6 {[%clk 0:00:28.5]} 36. Kg3 {[%clk
0:00:18.1]} 36... g5 {[%clk 0:00:29.1]} 37. h4 {[%clk 0:00:18.4]} 37... Ke7
{[%clk 0:00:18.8]} 38. hxg5 {[%clk 0:00:18]} 38... Rxe6 {[%clk 0:00:19.5]} 39.
Rxe6+ {[%clk 0:00:17.1]} 39... Kxe6 {[%clk 0:00:20.4]} 40. Kf4 {[%clk
0:00:17.7]} 40... g6 {[%clk 0:00:20]} 41. c3 {[%clk 0:00:13.8]} 41... a6 {[%clk
0:00:15.8]} 42. g4 {[%clk 0:00:13.7]} 42... fxg4 {[%clk 0:00:14.8]} 43. Kxg4
{[%clk 0:00:12]} 43... Ke5 {[%clk 0:00:15.3]} 44. f3 {[%clk 0:00:07]} 44... b5
{[%clk 0:00:15.1]} 45. axb5 {[%clk 0:00:06.5]} 45... axb5 {[%clk 0:00:16]} 46.
f4+ {[%clk 0:00:05.2]} 46... Ke4 {[%clk 0:00:15.9]} 47. Kg3 {[%clk 0:00:05.9]}
47... Ke3 {[%clk 0:00:15.9]} 48. f5 {[%clk 0:00:06.3]} 48... gxf5 {[%clk
0:00:16.4]} 49. g6 {[%clk 0:00:07]} 49... f4+ {[%clk 0:00:17.2]} 50. Kh2 {[%clk
0:00:05.8]} 50... f3 {[%clk 0:00:16.6]} 51. g7 {[%clk 0:00:04.7]} 51... f2
{[%clk 0:00:16.4]} 52. g8=Q {[%clk 0:00:04.7]} 52... f1=Q {[%clk 0:00:17.1]} 53.
Qg5+ {[%clk 0:00:05]} 53... Kd3 {[%clk 0:00:12.7]} 54. Qxc5 {[%clk 0:00:05.1]}
54... Qe2+ {[%clk 0:00:11.3]} 55. Kg3 {[%clk 0:00:04.8]} 55... Qe3+ {[%clk
0:00:09.8]} 56. Qxe3+ {[%clk 0:00:04.6]} 56... Kxe3 {[%clk 0:00:10.7]} 57. c4
{[%clk 0:00:04.7]} 57... bxc4 {[%clk 0:00:10.5]} 58. bxc4 {[%clk 0:00:05.6]}
58... Kd4 {[%clk 0:00:11]} 59. Kf4 {[%clk 0:00:05.9]} 59... Kxc4 {[%clk
0:00:11.3]} 1/2-1/2